fUSD/lending_fUSD_20240317
["ID","MTS","AMOUNT","RATE_DAILY","PERIOD"]
[319308866,1710654650769,-500.0,0.00015436,2]
[319308867,1710654650778,-527.73,0.00015436,2]
[319308868,1710654650789,-500.0,0.00015436,2]
[319308869,1710654650798,-527.73,0.00015436,2]
[319308870,1710654650808,-288.0,0.0001545,2]
[319308871,1710654650817,-535.0,0.0001545,2]
[319308872,1710654650826,-500.0,0.00015478,2]
[319308873,1710654650835,-500.0,0.00015478,2]
[319308874,1710654650844,-500.0,0.00015478,2]
[319308875,1710654650854,-228.4,0.00015478,2]
[319308876,1710654650864,-500.0,0.00015478,2]
[319308877,1710654650873,-500.0,0.00015478,2]
[319308878,1710654650882,-500.0,0.00015478,2]
[319308879,1710654650891,-500.0,0.00015478,2]
[319308880,1710654650901,-500.0,0.00015478,2]
[319308881,1710654650910,-500.0,0.00015478,2]
[319308882,1710654650919,-500.0,0.00015478,2]
[319308883,1710654650928,-500.0,0.00015478,2]
[319308884,1710654650937,-332.22,0.00015478,2]
[319308885,1710654650946,-500.0,0.00015478,2]
[319308886,1710654650955,-500.0,0.00015478,2]
[319308887,1710654650964,-500.0,0.00015478,2]
[319308888,1710654650973,-500.0,0.00015478,2]
[319308889,1710654650982,-500.0,0.00015478,2]
[319308890,1710654650991,-500.0,0.00015478,2]
[319308891,1710654651001,-500.0,0.00015478,2]
[319308892,1710654651010,-500.0,0.00015478,2]
[319308893,1710654651019,-500.0,0.00015478,2]
[319308894,1710654651028,-500.0,0.00015478,2]
[319308895,1710654651037,-500.0,0.00015478,2]
[319308896,1710654651046,-500.0,0.00015478,2]
[319308897,1710654651056,-500.0,0.00015478,2]
[319308898,1710654651066,-500.0,0.00015478,2]
[319308899,1710654651076,-500.0,0.00015478,2]
[319308900,1710654651085,-500.0,0.00015478,2]
[319308901,1710654651095,-500.0,0.00015478,2]
[319308902,1710654651104,-500.0,0.00015478,2]
[319308903,1710654651113,-500.0,0.00015478,2]
[319308904,1710654651124,-500.0,0.00015478,2]
[319308905,1710654651133,-500.0,0.00015478,2]
[319308906,1710654651143,-500.0,0.00015478,2]
[319308907,1710654651153,-500.0,0.00015478,2]
[319308908,1710654651163,-500.0,0.00015478,2]
[319308909,1710654651173,-500.0,0.00015478,2]
[319308910,1710654651182,-500.0,0.00015478,2]
[319308911,1710654651192,-500.0,0.00015478,2]
[319308912,1710654651202,-500.0,0.00015478,2]
[319308913,1710654651211,-500.0,0.00015478,2]
[319308914,1710654651221,-500.0,0.00015478,2]
[319308915,1710654651231,-500.0,0.00015478,2]
[319308916,1710654651241,-500.0,0.00015478,2]
[319308917,1710654651250,-599.68,0.00015478,2]
[319308918,1710654651260,-500.0,0.00015478,2]
[319308919,1710654651269,-500.0,0.00015478,2]
[319308920,1710654651279,-500.0,0.00015478,2]
[319308921,1710654651289,-410.57833943,0.00015478,2]
[319308922,1710654651298,-500.0,0.00015478,2]
[319308923,1710654651308,-500.0,0.00015478,2]
[319308924,1710654651318,-500.0,0.00015478,2]
[319308925,1710654651328,-500.0,0.00015478,2]
[319308926,1710654651338,-268.84,0.00015478,2]
[319308927,1710654651349,-500.0,0.00015478,2]
[319308928,1710654651359,-500.0,0.00015478,2]
[319308929,1710654651368,-500.0,0.00015478,2]
[319308930,1710654651378,-500.0,0.00015478,2]
[319308931,1710654651388,-500.0,0.00015478,2]
[319308932,1710654651397,-870.14,0.00015478,2]
[319308933,1710654651406,-870.14,0.00015478,2]
[319308934,1710654651416,-870.14,0.00015478,2]
[319308935,1710654651426,-870.14,0.00015478,2]
[319308936,1710654651435,-870.14,0.00015478,2]
[319308937,1710654651445,-500.0,0.00015478,2]
[319308938,1710654651454,-500.0,0.00015478,2]
[319308939,1710654651464,-500.0,0.00015478,2]
[319308940,1710654651473,-500.0,0.00015478,2]
[319308941,1710654651483,-354.97,0.00015478,2]
[319308942,1710654651492,-500.0,0.00015478,2]
[319308943,1710654651502,-500.0,0.00015478,2]
[319308944,1710654651511,-500.0,0.00015478,2]
[319308945,1710654651521,-500.0,0.00015478,2]
[319308946,1710654651531,-500.0,0.00015478,2]
[319308947,1710654651541,-500.0,0.00015478,2]
[319308948,1710654651550,-500.0,0.00015478,2]
[319308949,1710654651559,-500.0,0.00015478,2]
[319308950,1710654651570,-500.0,0.00015478,2]
[319308951,1710654651580,-500.0,0.00015478,2]
[319308952,1710654651590,-500.0,0.00015478,2]
[319308953,1710654651601,-500.0,0.00015478,2]
[319308954,1710654651611,-500.0,0.00015478,2]
[319308955,1710654651620,-500.0,0.00015478,2]
[319308956,1710654651630,-500.0,0.00015478,2]
[319308957,1710654651639,-500.0,0.00015478,2]
[319308958,1710654651650,-500.0,0.00015478,2]
[319308959,1710654651660,-500.0,0.00015478,2]
[319308960,1710654651670,-500.0,0.00015478,2]
[319308961,1710654651679,-500.0,0.00015478,2]
[319308962,1710654651688,-1357.28,0.00015478,2]
[319308963,1710654651697,-1357.28,0.00015478,2]
[319308964,1710654651706,-1357.28,0.00015478,2]
[319308965,1710654651715,-1357.28,0.00015478,2]
[319308966,1710654651724,-1357.28,0.00015478,2]
[319308967,1710654651734,-500.0,0.00015478,2]
[319308968,1710654651744,-500.0,0.00015478,2]
[319308969,1710654651753,-500.0,0.00015478,2]
[319308970,1710654651762,-500.0,0.00015478,2]
[319308971,1710654651772,-261.83,0.00015478,2]
[319308972,1710654651783,-500.0,0.00015478,2]
[319308973,1710654651793,-211.68,0.00015478,2]
[319308974,1710654651803,-444.35,0.00015478,2]
[319308975,1710654651812,-500.0,0.00015478,2]
[319308976,1710654651822,-500.0,0.00015478,2]
[319308977,1710654651831,-297.8,0.00015478,2]
[319308978,1710654651840,-500.0,0.00015478,2]
[319308979,1710654651851,-500.0,0.00015478,2]
[319308980,1710654651862,-500.0,0.00015478,2]
[319308981,1710654651871,-500.0,0.00015478,2]
[319308982,1710654651880,-500.0,0.00015478,2]
[319308983,1710654651890,-566.34,0.00015478,2]
[319308984,1710654651899,-566.34,0.00015478,2]
[319308985,1710654651908,-566.34,0.00015478,2]
[319308986,1710654651918,-566.34,0.00015478,2]
[319308987,1710654651927,-566.34,0.00015478,2]
[319308988,1710654651937,-153.9,0.00015478,2]
[319308989,1710654651946,-1903.12,0.00015478,2]
[319308990,1710654651956,-1903.12,0.00015478,2]
[319308991,1710654651966,-1903.12,0.00015478,2]
[319308992,1710654651976,-1903.12,0.00015478,2]
[319308993,1710654651986,-1903.12,0.00015478,2]
[319308994,1710654651996,-500.0,0.00015478,2]
[319308995,1710654652005,-500.0,0.00015478,2]
[319308996,1710654652016,-500.0,0.00015478,2]
[319308997,1710654652025,-380.7,0.00015478,2]
[319308998,1710654652035,-500.0,0.00015478,2]
[319308999,1710654652045,-500.0,0.00015478,2]
[319309000,1710654652054,-500.0,0.00015478,2]
[319309001,1710654652064,-500.0,0.00015478,2]
[319309002,1710654652074,-500.0,0.00015478,2]
[319309003,1710654652084,-1788.89,0.00015478,2]
[319309004,1710654652095,-1788.89,0.00015478,2]
[319309005,1710654652105,-1788.89,0.00015478,2]
[319309006,1710654652114,-1788.89,0.00015478,2]
[319309007,1710654652123,-1788.89,0.00015478,2]
[319309008,1710654652133,-3298.05,0.00015478,2]
[319309009,1710654652143,-3298.05,0.00015478,2]
[319309010,1710654652153,-3298.05,0.00015478,2]
[319309011,1710654652162,-3298.05,0.00015478,2]
[319309012,1710654652172,-3298.05,0.00015478,2]
[319309013,1710654652181,-500.0,0.00015478,2]
[319309014,1710654652191,-500.0,0.00015478,2]
[319309015,1710654652201,-527.73,0.00015478,2]
[319309016,1710654652211,-229.7,0.00015478,2]
[319309017,1710654652221,-500.0,0.00015479,2]
[319309018,1710654652231,-500.0,0.00015479,2]
[319309019,1710654652241,-500.0,0.00015479,2]
[319309020,1710654652258,-500.0,0.00015479,2]
[319309021,1710654652272,-423.90160794,0.00015479,2]
[319309022,1710654652282,-500.0,0.00015479,2]
[319309023,1710654652292,-166.32,0.00015479,2]
[319309024,1710654652302,-500.0,0.00015479,2]
[319309025,1710654652312,-500.0,0.00015479,2]
[319309026,1710654652322,-276.52,0.00015479,2]
[319309027,1710654652331,-354.97125364,0.00015479,2]
[319309028,1710654652342,-500.0,0.00015479,2]
[319309029,1710654652352,-500.0,0.00015479,2]
[319309030,1710654652363,-500.0,0.00015479,2]
[319309031,1710654652374,-500.0,0.00015479,2]
[319309032,1710654652384,-500.0,0.00015479,2]
[319309033,1710654652394,-500.0,0.00015479,2]
[319309034,1710654652404,-369.91,0.00015479,2]
[319309035,1710654652414,-500.0,0.00015479,2]
[319309036,1710654652424,-500.0,0.00015479,2]
[319309037,1710654652434,-203.28,0.00015479,2]
[319309038,1710654652445,-500.0,0.00015479,2]
[319309039,1710654652455,-233.77115366,0.00015479,2]
[319309040,1710654652465,-500.0,0.00015479,2]
[319309041,1710654652475,-500.0,0.00015479,2]
[319309042,1710654652485,-500.0,0.00015479,2]
[319309043,1710654652495,-500.0,0.00015479,2]
[319309044,1710654652504,-500.0,0.00015479,2]
[319309045,1710654652514,-500.0,0.00015479,2]
[319309046,1710654652524,-500.0,0.00015479,2]
[319309047,1710654652535,-333.26981023,0.00015479,2]
[319309048,1710654652545,-870.14,0.00015479,2]
[319309049,1710654652555,-870.14,0.00015479,2]
[319309050,1710654652565,-870.14,0.00015479,2]
[319309051,1710654652575,-870.14,0.00015479,2]
[319309052,1710654652584,-870.14,0.00015479,2]
[319309053,1710654652594,-870.14,0.00015479,2]
[319309054,1710654652605,-870.14,0.00015479,2]
[319309055,1710654652615,-870.14,0.00015479,2]
[319309056,1710654652625,-870.14,0.00015479,2]
[319309057,1710654652635,-870.14,0.00015479,2]
[319309058,1710654652645,-870.18897456,0.00015479,2]
[319309059,1710654652654,-500.0,0.00015479,2]
[319309060,1710654652665,-500.0,0.00015479,2]
[319309061,1710654652675,-500.0,0.00015479,2]
[319309062,1710654652685,-500.0,0.00015479,2]
[319309063,1710654652694,-500.0,0.00015479,2]
[319309064,1710654652704,-500.0,0.00015479,2]
[319309065,1710654652713,-500.0,0.00015479,2]
[319309066,1710654652723,-500.0,0.00015479,2]
[319309067,1710654652733,-500.0,0.00015479,2]
[319309068,1710654652744,-185.65,0.00015479,2]
[319309069,1710654652754,-500.0,0.00015479,2]
[319309070,1710654652765,-500.0,0.00015479,2]
[319309071,1710654652778,-500.0,0.00015479,2]
[319309072,1710654652789,-500.0,0.00015479,2]
[319309073,1710654652798,-500.0,0.00015479,2]
[319309074,1710654652809,-500.0,0.00015479,2]
[319309075,1710654652819,-500.0,0.00015479,2]
[319309076,1710654652829,-500.0,0.00015479,2]
[319309077,1710654652838,-500.0,0.00015479,2]
[319309078,1710654652848,-526.43879917,0.00015479,2]
[319309079,1710654652859,-500.0,0.00015479,2]
[319309080,1710654652868,-500.0,0.00015479,2]
[319309081,1710654652878,-500.0,0.00015479,2]
[319309082,1710654652888,-500.0,0.00015479,2]
[319309083,1710654652897,-500.0,0.00015479,2]
[319309084,1710654652907,-500.0,0.00015479,2]
[319309085,1710654652917,-500.0,0.00015479,2]
[319309086,1710654652927,-500.0,0.00015479,2]
[319309087,1710654652936,-155.57,0.00015479,2]
[319309088,1710654652946,-500.0,0.00015479,2]
[319309089,1710654652955,-500.0,0.00015479,2]
[319309090,1710654652965,-500.0,0.00015479,2]
[319309091,1710654652975,-500.0,0.00015479,2]
[319309092,1710654652985,-500.0,0.00015479,2]
[319309093,1710654652994,-500.0,0.00015479,2]
[319309094,1710654653004,-166.25,0.00015479,2]
[319309095,1710654653014,-1357.28,0.00015479,2]
[319309096,1710654653024,-1357.28,0.00015479,2]
[319309097,1710654653035,-1357.28,0.00015479,2]
[319309098,1710654653045,-1357.28,0.00015479,2]
[319309099,1710654653055,-1357.28,0.00015479,2]
[319309100,1710654653065,-1357.28,0.00015479,2]
[319309101,1710654653075,-1357.28,0.00015479,2]
[319309102,1710654653085,-1357.28,0.00015479,2]
[319309103,1710654653095,-1357.28,0.00015479,2]
[319309104,1710654653109,-1357.28,0.00015479,2]
[319309105,1710654653120,-1357.43,0.00015479,2]
[319309106,1710654653130,-500.0,0.00015479,2]
[319309107,1710654653140,-500.0,0.00015479,2]
[319309108,1710654653150,-500.0,0.00015479,2]
[319309109,1710654653160,-500.0,0.00015479,2]
[319309110,1710654653171,-500.0,0.00015479,2]
[319309111,1710654653181,-643.12,0.00015479,2]
[319309112,1710654653191,-566.34,0.00015479,2]
[319309113,1710654653202,-566.34,0.00015479,2]
[319309114,1710654653212,-566.34,0.00015479,2]
[319309115,1710654653222,-566.34,0.00015479,2]
[319309116,1710654653233,-566.34,0.00015479,2]
[319309117,1710654653244,-566.34,0.00015479,2]
[319309118,1710654653256,-566.34,0.00015479,2]
[319309119,1710654653484,-566.34,0.00015479,2]
[319309120,1710654653495,-566.34,0.00015479,2]
[319309121,1710654653505,-566.34,0.00015479,2]
[319309122,1710654653515,-566.48,0.00015479,2]
[319309123,1710654653525,-1903.12,0.00015479,2]
[319309124,1710654653535,-1903.12,0.00015479,2]
[319309125,1710654653544,-1903.12,0.00015479,2]
[319309126,1710654653554,-1903.12,0.00015479,2]
[319309127,1710654653564,-1903.12,0.00015479,2]
[319309128,1710654653573,-1903.12,0.00015479,2]
[319309129,1710654653583,-1903.12,0.00015479,2]
[319309130,1710654653593,-1903.12,0.00015479,2]
[319309131,1710654653604,-1903.12,0.00015479,2]
[319309132,1710654653614,-1903.12,0.00015479,2]
[319309133,1710654653623,-1903.30923935,0.00015479,2]
[319309134,1710654653632,-500.0,0.00015479,2]
[319309135,1710654653641,-500.0,0.00015479,2]
[319309136,1710654653650,-500.0,0.00015479,2]
[319309137,1710654653660,-500.0,0.00015479,2]
[319309138,1710654653669,-500.0,0.00015479,2]
[319309139,1710654653678,-340.52,0.00015479,2]
[319309140,1710654653688,-1788.89,0.00015479,2]
[319309141,1710654653697,-1788.89,0.00015479,2]
[319309142,1710654653706,-1788.89,0.00015479,2]
[319309143,1710654653716,-1788.89,0.00015479,2]
[319309144,1710654653725,-1788.89,0.00015479,2]
[319309145,1710654653734,-1788.89,0.00015479,2]
[319309146,1710654653744,-1788.89,0.00015479,2]
[319309147,1710654653753,-1788.89,0.00015479,2]
[319309148,1710654653763,-1788.89,0.00015479,2]
[319309149,1710654653772,-1788.89,0.00015479,2]
[319309150,1710654653785,-1789.04,0.00015479,2]
[319309151,1710654653794,-3298.05,0.00015479,2]
[319309152,1710654653805,-3298.05,0.00015479,2]
[319309153,1710654653815,-3298.05,0.00015479,2]
[319309154,1710654653826,-3298.05,0.00015479,2]
[319309155,1710654653835,-3298.05,0.00015479,2]
[319309156,1710654653845,-3298.05,0.00015479,2]
[319309157,1710654653858,-3298.05,0.00015479,2]
[319309158,1710654653867,-3298.05,0.00015479,2]
[319309159,1710654653877,-3298.05,0.00015479,2]
[319309160,1710654653886,-3298.05,0.00015479,2]
[319309161,1710654653896,-3298.26,0.00015479,2]
[319309162,1710654653906,-217.72694971,0.00015483,2]
[319309163,1710654653915,-205.1716943,0.00015498,2]
[319309164,1710654653925,-155.22175357,0.00015498,2]
[319309165,1710654653934,-155.08317545,0.00015498,2]
[319309166,1710654653943,-1239.0744,0.00015498,2]
[319309167,1710654653954,-374.75452883,0.00015498,2]
[319309168,1710654653963,-367220.66958466,0.00015498,2]
[319309169,1710654653972,-155.5937766,0.00015498,2]
[319309170,1710654653982,-22811.86805223,0.00015498,2]
[319309171,1710654653992,-527.29473383,0.00015498,7]
[319309172,1710654654001,-256.89939333,0.00015498,2]
[319309173,1710654654011,-2163.23429142,0.00015498,2]
[319309174,1710654654021,-155.35456407,0.00015498,2]
[319309175,1710654654031,-200.77694229,0.00015498,2]
[319309176,1710654654040,-3357.84626022,0.00015498,2]
[319309177,1710654654050,-157.74681008,0.00015498,2]
[319309178,1710654654060,-11326.19792341,0.00015498,2]
[319309179,1710654654070,-1953.04656482,0.00015498,2]
[319309180,1710654654079,-340.59530613,0.00015498,2]
[319309181,1710654654089,-155.21184533,0.00015498,2]
[319309182,1710654654102,-236.39847973,0.00015498,2]
[319309183,1710654654112,-179.69640477,0.00015498,2]
[319309184,1710654654121,-1476.79223632,0.00015498,2]
[319309185,1710654654131,-204.58179093,0.00015499,2]
[319309186,1710654654141,-5002.53230386,0.00015499,2]
[319309187,1710654654151,-155.16010667,0.00015499,2]
[319309188,1710654654161,-200536.24233163,0.00015499,2]
[319309189,1710654654170,-408.07543191,0.00015499,5]
[319309190,1710654654181,-537.27487163,0.000155,3]
[319309191,1710654654190,-1115256.26346838,0.000155,2]
[319309192,1710654654491,-527.73,0.00015478,2]
[319309193,1710654654501,-32.0952313,0.000155,2]
[319309194,1710654654684,-2685.07296228,0.000141,2]
[319309195,1710654654695,-500.0,0.00015399,2]
[319309196,1710654654705,-500.0,0.00015399,2]
[319309197,1710654654715,-527.73,0.00015478,2]
[319309198,1710654654724,-527.73,0.00015478,2]
[319309199,1710654654733,-527.73,0.00015478,2]
[319309200,1710654654744,-527.73,0.00015479,2]
[319309201,1710654654754,-1021928.17361527,0.000155,2]
[319309202,1710654654766,-284973.84132797,0.000155,2]
[319309203,1710654654778,-68818.2800666,0.000155,2]
[319309204,1710654654802,-527.73,0.00015479,2]
[319309205,1710654654811,-34472.691246,0.000155,2]
[319309206,1710654654822,-1312.0,0.000155,2]
[319309207,1710654654834,-658.5141,0.000155,2]
[319309208,1710654654845,-543.62108514,0.000155,2]
[319309209,1710654654864,-3709.00320002,0.000155,2]
[319309210,1710654654876,-1801.3774315,0.000155,2]
[319309211,1710654654887,-834.41039019,0.000155,2]
[319309212,1710654654898,-3334.64070629,0.000155,2]
[319309213,1710654654909,-432697.0162325,0.000155,2]
[319309214,1710654654921,-3699.32876272,0.000155,2]
[319309215,1710654654931,-1195.70259647,0.000155,2]
[319309216,1710654654943,-415.227,0.000155,2]
[319309217,1710654654956,-1613.3952938,0.000155,2]
[319309218,1710654655089,-527.73,0.00015479,2]
[319309219,1710654655099,-527.73,0.00015479,2]
[319309220,1710654655111,-248.92192655,0.00015479,2]
[319309221,1710654655124,-278.80807345,0.00015479,2]
[319309222,1710654655133,-527.73,0.00015479,2]
[319309223,1710654655143,-527.73,0.00015479,2]
[319309224,1710654655153,-527.73,0.00015479,2]
[319309225,1710654655163,-796.68192655,0.000155,2]
[319309226,1710654655198,-18.3962085,0.000155,2]
[319309227,1710654655210,-291.0,0.000155,2]
[319309228,1710654655221,-893.0,0.000155,2]
[319309229,1710654655233,-3310.854175,0.000155,2]
[319309230,1710654655400,-527.73,0.00015479,2]
[319309231,1710654655409,-527.73,0.00015479,2]
[319309232,1710654655419,-527.91,0.00015479,2]
[319309233,1710654655428,-7544.94249753,0.000155,2]
[319309234,1710654655439,-4540.0,0.000155,2]
[319309235,1710654655453,-7738.44528187,0.000155,2]
[319309236,1710654655465,-4924.8644315,0.000155,2]
[319309237,1710654655476,-7243.6172494,0.000155,2]
[319309238,1710654655494,-1120.30101377,0.000155,2]
[319309239,1710654655509,-931.13278959,0.000155,2]
[319309240,1710654655524,-261.98956543,0.000155,2]
[319309241,1710654655540,-5997.00242401,0.000155,2]
[319309242,1710654655579,-209.3645979,0.00015498,2]
[319309243,1710654655590,-264190.63540218,0.000155,2]
[319309244,1710654655604,-568.89226392,0.000155,2]
[319309245,1710654655930,-294.83806546,0.00015399,2]
[319309246,1710654657005,-205.16193454,0.00015399,2]
[319309247,1710654657016,-500.0,0.00015399,2]
[319309248,1710654657026,-500.0,0.00015399,2]
[319309249,1710654657037,-78.84759629,0.00015399,2]
[319309250,1710654657052,-421.15240371,0.00015399,2]
[319309251,1710654657063,-500.0,0.00015399,2]
[319309252,1710654657074,-500.0,0.00015399,2]
[319309253,1710654657087,-500.0,0.00015399,2]
[319309254,1710654657098,-500.0,0.00015399,2]
[319309255,1710654657110,-500.0,0.00015399,2]
[319309256,1710654657121,-500.0,0.00015399,2]
[319309257,1710654657132,-3984.44759632,0.00015498,2]
[319309258,1710654657156,-391.20175514,0.00015498,2]
[319309259,1710654657168,-155.0,0.00015498,2]
[319309260,1710654657179,-252576.14422652,0.000155,2]
[319309261,1710654657193,-6873.00433478,0.000155,2]
[319309262,1710654657212,-1583.12167693,0.000155,2]
[319309263,1710654657254,-337389.42037798,0.000155,2]
[319309264,1710654657280,-404.63,0.00015399,2]
[319309265,1710654657290,-9869.89145092,0.000155,2]
[319309266,1710654657302,-13406.30917255,0.000155,2]
[319309267,1710654657315,-16989.91276986,0.000155,2]
[319309268,1710654657326,-14232.0,0.000155,2]
[319309269,1710654657337,-276.8885094,0.000155,2]
[319309277,1710655259181,400.0,0.00023,120]
[319309278,1710655311195,400.0,0.00024,120]
[319309279,1710655379064,230.0,0.00024,120]
[319309288,1710655832472,-327.01287504,0.00012303,2]
[319309289,1710655832485,-91.95712496,0.00012303,2]
[319309290,1710655832495,-250.0,0.00014077,2]
[319309291,1710655832504,-170.29,0.00014077,2]
[319309292,1710655832514,-1030.85,0.0001408,2]
[319309293,1710655832524,-46.07371905,0.00014081,2]
[319309294,1710655832536,-453.92628095,0.00014081,2]
[319309295,1710655832545,-371.52210581,0.00014104,2]
[319309296,1710655832557,-128.47789419,0.00014104,2]
[319309297,1710655832567,-1854.86,0.00014128,2]
[319309298,1710655832576,-202.43391964,0.00014129,2]
[319309299,1710655832588,-923.58946258,0.00014129,2]
[319309300,1710655832599,-1520.95476989,0.00014129,2]
[319309301,1710655832611,-2021.03288947,0.00014129,2]
[319309302,1710655832635,-4634.01574669,0.00014129,2]
[319309303,1710655832647,-393.1182,0.00014129,2]
[319309304,1710655832694,-6261.46074753,0.00014129,2]
[319309305,1710655832751,-2261.33162603,0.00014129,2]
[319309306,1710655832763,-5214.96516474,0.00014129,2]
[319309307,1710655832777,-300.6296171,0.00014129,2]
[319309308,1710655832791,-166.46785633,0.00014129,2]
[319309309,1710655832800,-335.92177996,0.00014152,2]
[319309351,1710655838409,-336.96822004,0.00014152,2]
[319309352,1710655838418,-33.99614727,0.0001418,2]
[319309353,1710655838430,-157.43385273,0.0001418,2]
[319309354,1710655838440,-367.18,0.00014193,2]
[319309355,1710655838451,-745.21,0.00014298,2]
[319309356,1710655838462,-327.11,0.00014324,2]
[319309357,1710655838471,-250.71,0.00014438,2]
[319309358,1710655838481,-150.72773007,0.000145,2]
[319309359,1710655838490,-520.71,0.000145,2]
[319309360,1710655838500,-398.34011794,0.00014567,2]
[319309361,1710655838511,-20.62988206,0.00014567,2]
[319309362,1710655838521,-2550.0,0.00015,4]
[319309363,1710655838534,-748.0,0.000152,2]
[319309364,1710655838544,-150.0,0.00015283,2]
[319309365,1710655838554,-3216.1959,0.00015299,2]
[319309366,1710655838564,-213.67863588,0.00015299,2]
[319309367,1710655838575,-2316.27425732,0.00015299,2]
[319309368,1710655838599,-1655.5499999,0.00015299,2]
[319309369,1710655838622,-366.86,0.00015299,2]
[319309370,1710655838635,-935.5402069,0.00015299,2]
[319309371,1710655838645,-165.76965711,0.000153,2]
[319309372,1710655838655,-151.0,0.00015342,2]
[319309373,1710655838665,-500.0,0.00015342,2]
[319309374,1710655838675,-151.0,0.00015342,2]
[319309375,1710655838684,-500.0,0.00015342,2]
[319309376,1710655838694,-223.0,0.00015342,2]
[319309377,1710655838703,-500.0,0.00015342,2]
[319309378,1710655838713,-502.0,0.00015342,2]
[319309379,1710655838723,-6910.34411375,0.00015345,2]
[319309380,1710655838733,-1554.52526052,0.0001538,2]
[319309382,1710655838743,-500.0,0.00015393,2]
[319309383,1710655838752,-274.54166674,0.00015398,2]
[319309384,1710655838762,-274.54166666,0.00015398,2]
[319309385,1710655838771,-274.54166666,0.00015398,2]
[319309386,1710655838783,-274.54166666,0.00015399,2]
[319309387,1710655838793,-274.54166666,0.00015399,2]
[319309389,1710655838803,-274.54166666,0.00015399,2]
[319309390,1710655838813,-500.0,0.00015399,2]
[319309391,1710655838823,-276.65722789,0.00015399,2]
[319309392,1710655838832,-500.0,0.00015399,2]
[319309393,1710655838842,-500.0,0.00015399,2]
[319309394,1710655838851,-576.76,0.00015399,2]
[319309395,1710655838861,-500.0,0.00015399,2]
[319309396,1710655838871,-500.0,0.00015399,2]
[319309397,1710655838881,-500.0,0.00015399,2]
[319309398,1710655838891,-500.0,0.00015399,2]
[319309399,1710655838901,-500.0,0.00015399,2]
[319309400,1710655838910,-500.0,0.00015399,2]
[319309401,1710655838920,-500.0,0.00015399,2]
[319309402,1710655838929,-500.0,0.00015399,2]
[319309403,1710655838939,-500.0,0.00015399,2]
[319309404,1710655838947,-603.06230944,0.00015399,2]
[319309405,1710655838957,-500.0,0.00015399,2]
[319309406,1710655838967,-500.0,0.00015399,2]
[319309407,1710655838977,-500.0,0.00015399,2]
[319309408,1710655838987,-500.0,0.00015399,2]
[319309409,1710655838997,-243.16909809,0.00015399,2]
[319309410,1710655839006,-500.0,0.00015399,2]
[319309411,1710655839016,-500.0,0.00015399,2]
[319309412,1710655839025,-500.0,0.00015399,2]
[319309413,1710655839037,-500.0,0.00015399,2]
[319309414,1710655839046,-500.0,0.00015399,2]
[319309415,1710655839056,-500.0,0.00015399,2]
[319309416,1710655839065,-500.0,0.00015399,2]
[319309417,1710655839075,-500.0,0.00015399,2]
[319309418,1710655839084,-284.55,0.00015399,2]
[319309419,1710655839094,-511.97657966,0.00015399,2]
[319309420,1710655839103,-500.0,0.00015399,2]
[319309421,1710655839112,-500.0,0.00015399,2]
[319309422,1710655839122,-500.0,0.00015399,2]
[319309423,1710655839132,-500.0,0.00015399,2]